Cogmind - Beta 15 @@@ ROGUE MODE // 2025.09.10 @ 19:33:14 Player: the Result: Destroyed by G-47 Trooper with Particle Gun Performance ------------- Evolutions (0) 0 Regions Visited (2) 400 Robots Destroyed (54) 270 Value Destroyed (900) 900 Prototype IDs (4) 80 Alien Tech Used (0) 0 Bonus (0) 0 TOTAL SCORE: 1650 Bonus ------- None Cogmind --------- Core Integrity 0/250 Matter 130/300 Energy 275/275 System Corruption 0% Temperature Cool (27) Movement Treading (160) Location -10/Mines Parts ------- > --- POWER (1) -------- Deuterium Engine > --- PROPULSION (2) --- Light Treads Light Treads > --- UTILITY (2) ------ Improved Heat Sink Large Storage Unit > --- WEAPON (2) ------- Heavy Assault Rifle Heavy Assault Rifle > --- INVENTORY (15) --- Improved Ion Engine Light Treads Light Treads Improved Treads Improved Treads Improved Treads Improved Treads Recoil Stabilizer Improved Trap Extractor (0/6) Heavy Particle Cannon Heavy Assault Rifle Grenade Launcher Grenade Launcher Datajack Great Maul Peak State ------------ > --- POWER ------------ Deuterium Engine > --- PROPULSION ------- Light Treads Light Treads > --- UTILITY ---------- Improved Heat Sink Large Storage Unit > --- WEAPON ----------- Heavy Assault Rifle Heavy Assault Rifle > --- INVENTORY -------- Improved Ion Engine Light Treads Light Treads Improved Treads Improved Treads Improved Treads Improved Treads Recoil Stabilizer Improved Trap Extractor Heavy Particle Cannon Heavy Assault Rifle Grenade Launcher Grenade Launcher Datajack Great Maul [Rating: 16] Favorites ----------- Power Improved Ion Engine Engine Improved Ion Engine Propulsion Light Treads Treads Light Treads Leg Aluminum Leg Utility Large Storage Unit Device Seismic Detector Storage Large Storage Unit Weapon Heavy Assault Rifle Ballistic Gun Heavy Assault Rifle Launcher Grenade Launcher Special Melee Weapon Datajack Build | -11 -10 -10 ------- Run | Yrd Mat Min Slots Evolved . | . . . Power . | . . . Propulsion . | . . . Utility . | . . . Weapon . | . . . Parts Attached 24 | 7 13 4 Power 4 | 1 2 1 Engine 4 | 1 2 1 Core . | . . . Reactor . | . . . Propulsion 8 | 2 4 2 Treads 6 | . 4 2 Leg 2 | 2 . . Wheel . | . . . Hover . | . . . Flight . | . . . Utility 4 | 2 2 . Device 2 | 1 1 . Storage 2 | 1 1 . Processor . | . . . Hackware . | . . . Protection . | . . . Artifact . | . . . Weapon 8 | 2 5 1 Energy Gun . | . . . Energy Cannon . | . . . Ballistic Gun 5 | 2 3 . Ballistic Cannon . | . . . Launcher 2 | . 1 1 Special Weapon . | . . . Impact Weapon . | . . . Slashing Weapon . | . . . Piercing Weapon . | . . . Special Melee Weapon 1 | . 1 . Unidentified Prototypes . | . . . Parts Lost 3 | . 2 1 Power . | . . . Propulsion 1 | . . 1 Utility 1 | . 1 . Weapon 1 | . 1 . Highest Loss Streak 1 | . 1 1 To Critical Strikes . | . . . Average Backups 10 | 2 10 13 Power . | . . 1 Propulsion 4 | 1 3 6 Utility . | . . . Weapon 4 | 1 5 5 Tool/Special . | . . . Unused Backups 19 | . 5 14 Power 1 | . . 1 Propulsion 10 | . 4 6 Utility 2 | . . 2 Weapon 6 | . 1 5 Tool/Special . | . . . Average Slot Usage (%) 97 | . 95 99 Engine 14 | . 14 14 Treads 26 | . 26 27 Leg 1 | . 1 . Device 11 | . 10 14 Storage 14 | . 14 14 Ballistic Gun 27 | . 27 27 Peak Build Rating 16 | 7 14 16 Average Rating 11 | 5 11 13 On Entrance 7 | . 7 14 Naked Turns . | . . . Heaviest Build 36 | 11 34 36 Greatest Support 40 | 20 40 40 Greatest Overweight (x) 1 | . . 1 Average Overweight (x) . | . . . Largest Inventory Capacity 15 | 8 15 15 Average Capacity 12 | 6 13 15 Most Carried 15 | 4 15 15 Average Carried 10 | 2 10 13 Final Capacity 15 | 8 15 15 Final Carried 15 | 4 15 15 Class Distribution -------------------- 100% | Mutant Dominant Class ---------------- Mutant | -10/Materials Mutant | -10/Mines Resources | -11 -10 -10 ----------- Run | Yrd Mat Min Matter Collected 1059 | 261 769 29 Remotely . | . . . Salvage Created 1471 | 220 1181 70 Parts 111 | 25 81 5 Haulers Intercepted 2 | . 2 . Recyclers Shooed 1 | . . 1 Parts Field Recycled . | . . . Retrieved Matter . | . . . Parts Self-Destructed . | . . . Prevented . | . . . Kills | -11 -10 -10 ------- Run | Yrd Mat Min Combat Hostiles Destroyed 28 | . 23 5 Guns 20 | . 19 1 AOE 8 | . 4 4 Classes Destroyed 8 | 3 5 . Worker 6 | 1 5 . Tunneler 8 | 7 1 . Hauler 2 | . 2 . Recycler 5 | 1 4 . Operator 2 | . 2 . Watcher 3 | . 3 . Swarmer 11 | . 8 3 Grunt 17 | . 15 2 Best Kill Streak 7 | 6 7 5 Combat Bots Only 7 | . 7 5 Max Kills in Single Turn 2 | 1 2 2 Gunslinging . | . . . Exploded 2 | . 2 2 Melee . | . . . Uniques/NPCs Destroyed . | . . . Combat | -11 -10 -10 -------- Run | Yrd Mat Min Hostile Shots Fired 148 | . 88 60 Missed 47 | . 31 16 Hits 101 | . 57 44 Projectile 101 | . 57 44 Critical Strikes 3 | . . 3 Damage Taken 1213 | . 590 623 Core 250 | . 125 125 Absorbed by Shields . | . . . Core Remaining (%) 100 | 100 . . Volleys Fired 156 | 43 92 21 Largest 2 | 2 2 2 Hottest 46 | 40 46 46 Shots Fired 307 | 86 181 40 Gun 302 | 86 178 38 Cannon . | . . . Launcher 5 | . 3 2 Special . | . . . Kinetic 302 | 86 178 38 Thermal . | . . . Explosive 5 | . 3 2 Electromagnetic . | . . . Robot Hit Streak 12 | 12 8 5 Robot Miss Streak 5 | 4 5 3 Penetration Max . | . . . Secondary Targets . | . . . Shots Hit Robots 152 | 42 86 24 Core Hits 81 | 18 54 9 Critical Kills 2 | 1 1 . Critical Parts Destroyed 2 | . . 2 Critical Strikes 4 | 1 1 2 Destroy 4 | 1 1 2 Melee Attacks . | . . . Impact . | . . . Slashing . | . . . Piercing . | . . . Sneak Attacks . | . . . Combat Hostiles . | . . . Follow-up Attacks . | . . . Damage Inflicted 2536 | 358 1577 601 Guns 2010 | 358 1301 351 Cannons . | . . . Explosions 509 | . 259 250 Melee . | . . . Ramming 17 | . 17 . Kinetic 2010 | 358 1301 351 Thermal . | . . . Explosive 509 | . 259 250 Electromagnetic . | . . . Impact . | . . . Slashing . | . . . Piercing . | . . . Highest Corruption . | . . . Average Corruption . | . . . Corruption Purged . | . . . Corruption Blocked . | . . . Overload Shots . | . . . Overflow Damage 49 | . . 49 Projectiles . | . . . Explosions 49 | . . 49 Melee . | . . . Knockbacks . | . . . Impact . | . . . Kinetic . | . . . Secondary . | . . . Self-Inflicted Damage 37 | . 17 20 Shots 2 | . 1 1 Rammed 3 | . 3 . Targets Rammed 3 | . 3 . Kicked . | . . . Crushed . | . . . Highest Temperature 15 | . 2 15 Average Temperature 5 | . 2 15 Received Heat Transfer 537 | . 207 330 Siege Activations . | . . . Martial Activations . | . . . Shielding Activations . | . . . Robots Disrupted . | . . . Combat Hostiles . | . . . Robots Corrupted . | . . . Combat Hostiles . | . . . Parts Fried . | . . . Impact Corruptions . | . . . Robots Melted . | . . . Combat Hostiles . | . . . Parts Melted . | . . . Heat Transferred . | . . . Parts Sabotaged . | . . . Parts Stolen . | . . . Parts Stripped . | . . . Power Chain Reactions . | . . . Alert | -11 -10 -10 ------- Run | Yrd Mat Min Maximum Alert Level 1 | . 1 1 Low Security (%) 63 | 100 43 97 Level 1 36 | . 56 2 Level 2 . | . . . Level 3 . | . . . Level 4 . | . . . Level 5 . | . . . High Security . | . . . Max Security . | . . . Peak Influence 377 | 10 377 209 Initial 108 | . . 108 Average 137 | 1 185 68 Influence Increases 951 | 45 775 131 Destroy 0b10 Robot/C 560 | . 460 100 Destroy 0b10 Robot/NC 130 | 45 85 . Destroy Leader 130 | . 110 20 Successful Hack 31 | . 31 . Disable Machine 15 | . 15 . Destroy Structure 25 | . 14 11 Lose Combat Pursuer 60 | . 60 . Influence Decreases 951 | 45 496 410 Entered New Map 171 | . . 171 Time Decay 750 | 45 476 229 Lost Part 30 | . 20 10 Squads Dispatched 6 | . 6 . Investigation 4 | . 4 . Extermination . | . . . Reinforcement 2 | . 2 . Assault . | . . . Garrison . | . . . Intercept . | . . . Searches Triggered . | . . . Construction Impeded . | . . . Haulers Reinforced . | . . . Active Scanning Responses . | . . . Cargo Convoy Interrupts . | . . . Stealth | -11 -10 -10 --------- Run | Yrd Mat Min Distress Signals 3 | . 3 . Communications Jammed . | . . . Distress Signals . | . . . Times Spotted 42 | . 35 7 Peak Tracking Total 7 | . 7 5 Tactical Retreats 3 | . 3 . Traps | -11 -10 -10 ------- Run | Yrd Mat Min Traps Triggered 3 | . 3 . Indirectly . | . . . Trap Hack Attempts 90 | . 84 6 Triggered 1 | . . 1 Disarmed 1 | . 1 . Reprogrammed 4 | . 4 . Reused . | . . . Traps Extracted . | . . . Installed . | . . . Triggered . | . . . Machines | -11 -10 -10 ---------- Run | Yrd Mat Min Machines Disabled 1 | . 1 . Max in Single Turn 1 | . 1 . Machines Repaired . | . . . Machines Dismantled . | . . . Machines Sabotaged . | . . . Overloaded Fab Kills . | . . . Hacking | -11 -10 -10 --------- Run | Yrd Mat Min Machines Accessed 10 | . 9 1 Terminals 7 | . 7 . Fabricators . | . . . Repair Stations . | . . . Recycling Units 2 | . 2 . Scanalyzers . | . . . Garrison Access . | . . . Total Hacks 26 | . 25 1 Successful 14 | . 13 1 Failed 12 | . 12 . Catastrophic 1 | . 1 . Database Lockouts . | . . . Manual 17 | . 17 . Terminals 21 | . 21 . Fabricators . | . . . Repair Stations . | . . . Recycling Units 4 | . 4 . Scanalyzers . | . . . Garrison Access . | . . . Terminal Hacks 6 | . 5 1 Prototype ID Bank 2 | . 2 . Open Door 1 | . . 1 Locate Traps 1 | . 1 . Hauler Manifests 1 | . 1 . Zone Layout 1 | . 1 . Fabricator Hacks . | . . . Repair Station Hacks . | . . . Recycling Unit Hacks . | . . . Scanalyzer . | . . . Garrison Access Hacks . | . . . Unauthorized Hacks 8 | . 8 . Terminals 5 | . 5 . Botnet 3 | . 3 . Operators 2 | . 2 . Fabricators . | . . . Repair Stations . | . . . Recycling Units 3 | . 3 . Reject 2 | . 2 . Recyclers 1 | . 1 . Scanalyzers . | . . . Garrison Access . | . . . Data Cores Recovered . | . . . Used . | . . . Hacking Detections 9 | . 9 . Full Trace Events 1 | . 1 . Feedback Events . | . . . Feedback Blocked . | . . . Robot Schematics Acquired . | . . . Robots Built . | . . . Authchips . | . . . Time . | . . . Total Robot Build Rating . | . . . Part Schematics Acquired . | . . . Parts Built . | . . . Authchips . | . . . Time . | . . . Total Part Build Rating . | . . . Parts Repaired . | . . . Time . | . . . Parts Recycled . | . . . Recycled Matter . | . . . Retrieved Matter . | . . . Retrieved Components . | . . . Parts Scanalyzed . | . . . Part Schematics Acquired . | . . . Parts Damaged . | . . . Bothacking | -11 -10 -10 ------------ Run | Yrd Mat Min Used RIF Installer . | . . . Robots Hacked . | . . . Non-combat . | . . . Combat . | . . . Robot Hacks Applied . | . . . Relay Couplers Released . | . . . Fabnet Peak Effective % . | . . . Robots Rewired . | . . . Allies Hacked . | . . . Hacks Repelled . | . . . Allies | -11 -10 -10 -------- Run | Yrd Mat Min Total Allies . | . . . Largest Group . | . . . Highest-Rated Group . | . . . Highest-Rated Ally . | . . . Total Orders . | . . . Ally Attacks . | . . . Total Damage . | . . . Kills . | . . . Allies Corrupted . | . . . Allies Melted . | . . . Intel | -11 -10 -10 ------- Run | Yrd Mat Min Active Infowar (turns) 1281 | 195 1086 . Seismic 1281 | 195 1086 . Robot Analysis Total . | . . . Derelict Logs Recovered 1 | . . 1 Drone Launches . | . . . Drone Recoveries . | . . . Exploration | -11 -10 -10 ------------- Run | Yrd Mat Min Turns Passed 2904 | 284 1874 746 Spaces Moved 1079 | 83 884 112 Core 4 | 4 . . Treads 932 | . 820 112 Legs 143 | 79 64 . Wheels . | . . . Hover . | . . . Flight . | . . . Fastest Speed 50 | 50 120 160 Average Speed 154 | 116 157 160 Slowest Speed 240 | 120 160 240 Overloaded Moves . | . . . Propulsion Burnouts . | . . . Robots Hopped . | . . . Potential Cave-ins . | . . . Cave-ins Triggered . | . . . Exploration Rate (%) 43 | 4 97 29 Regions Visited 2 Branch Regions 1 Pre-discovered Areas . | . . . Known Exits Taken . | . . . Unknown Exits Taken 2 | 1 1 . Scrap Searched . | . . . Spaces Dug . | . . . Terrain Destroyed 27 | . 10 17 Melee . | . . . Projectile . | . . . AOE 27 | . 10 17 Terrain Rammed . | . . . Walls Destroyed . | . . . Machines Disabled . | . . . Actions | -11 -10 -10 --------- Run | Yrd Mat Min Total 2033 | 198 1197 638 Wait 630 | 62 84 484 Move 1077 | 82 883 112 Hop . | . . . Pick Up 28 | 4 20 4 Fast Attach 8 | 7 1 . Attach 4 | . 3 1 Detach 2 | . 2 . Swap 16 | . 10 6 Drop 19 | . 15 4 Fire 156 | 43 92 21 Melee . | . . . Ram . | . . . Kick . | . . . Crush 3 | . 3 . Escape Stasis . | . . . Rewire . | . . . Trap 90 | . 84 6 Miscellaneous . | . . . Route ------- -11/Scrapyard -10/Materials (discovered 5 exits: [*Mat x3] / *Min x2) -10/Mines (discovered 1 exit: [*Mat]) History --------- Turn | Location | Event 3 | -11/Scrapyard | Discovered new exit (range 15) 285 | -11/Scrapyard | Entered Materials 305 | -10/Materials | Build established: Mutant 477 | -10/Materials | Discovered new exit (range 16) 698 | -10/Materials | Discovered new exit (range 4) 925 | -10/Materials | Discovered new exit (range 12) 1039 | -10/Materials | Destroyed 7 combat bots 1411 | -10/Materials | Discovered new exit (range 12) 1898 | -10/Materials | Discovered new exit (range 13) 2159 | -10/Materials | Entered Mines 2162 | -10/Mines | Core integrity fell below 50% 2220 | -10/Mines | Discovered new exit (range 13) 2339 | -10/Mines | Met a Derelict who couldn't figure out how to use a Trap Extractor 2850 | -10/Mines | Core integrity fell below 20% 2905 | -10/Mines | Destroyed by G-47 Trooper with Particle Gun Last Messages --------------- outta here before something nasty happens..." 02339_ Tosses Imp. Trap Extractor to the ground. 02411_ K-01 Serf collects debris. 02841_ Acquired Imp. Trap Extractor. 02844_ Attempting to reprogram Explosive Trap. 02849_ System intrusion detected, triggered Explosive Trap. 02849_ An explosion rips through the floor. 02849_ Machine disabled. 02854_ Acquired Hvy. Particle Cannon. 02857_ Dropped Beam Cannon. 02858_ Acquired Recoil Stabilizer. 02862_ Dropped Imp. Ion Engine. 02865_ Dropped Mining Laser. 02865_ Acquired Great Maul. 02894_ G-47 Trooper suffers critical hit (Destroy). 02894_ Destroyed Aluminum Leg. 02905_ Critical hit (Burn: +37). Map ----- +----------------------------------------------------+ | ??????????????# ######????# #???? #?????? | | ???????##????## ##??????# ##??# #?????? | | ??????## ##??# ####???# ### #?????? | | ??????# #??# #???# #?????? | | ??????# #### #???# ##????? | | ??????## ## < # #???# ### ? | | ???????## # ##### """ | | ????????# ## # """ # | | ???????# #### ## """ #? | | ??????# ##??############ #? | | ??????# ##??????????????# #? | | ??????## ##???????????????## #? | | ???????####????????####?????# ## ### ##? | | ??????????????????## ##????# #?###????##?? | | ????????????????### #????# #???????????? | | ????????????##### ###### #???????????? | | ???????????##|" # #???????????? | | ???????????#" X #???????????? | | ???????????#"* ##########???????????? | | ???????????#"=! #????????????????????? | | ???????????#"] [# ##????????????????????? | | ???????????## "## #?????????????????????? | | ????????????###### #?????????????????????? | | ?????????????????# ##?????????????????????? | | ?????????????????# ##?????????????????????? | | ?????????????????# @ ##????????????????????? | | ?????????????????# ##???????????????????? | | ???????"" #####g #???????????????????? | | ???????"" $ g #???????????????????? | | ???????"" #???????????????????? | | ???????"" ####### ##???????????????????? | | ?????? ?????????###????????????????????? | | ??????##???????????????????????????????????? | | ???????????????????????????????????????????? | | | | | | | | | | | | | | | | | | | | | | | | | | | | | | | | | +----------------------------------------------------+ Best States ------------- Heat Dissipation 39 Energy Generation 14 Energy Capacity 275 Matter Stores 300 Matter Capacity 300 Sight Range 16 Terrain Scan Density 10 Evasion (%) 55 Recoil Reduction 2 Item Schematics ----------------- None Robot Schematics ------------------ None Fabricated ------------ Nothing Repaired ---------- Nothing Alien Tech Used ----------------- None Achievements -------------- None Challenges ------------ None Game ------ Seed BlanketJammingFlamer Manual? 0 Play Time 00:17:09 Cumulative 315.1 hours Start 2025.09.10 @ 19:18:08 End 2025.09.10 @ 19:33:14 Sessions 1 Manual Loads 0 Difficulty Rogue Special Mode None Game No. 219 Rogue 219 Adventurer 0 Explorer 0 Win Type - Total 3 Types 3/0/0/0/0/0/0/0/0/0 Lore% 75 Gallery% 75 Achievement% 63 Wizard Run 0 Options --------- Layout 1 ASCII 0 Keyboard 0 Movement Mouse Keybinds 0 Fullscreen 1 Font 32/SmallcapsGlow Map View 50x35 Zoom Use 0% Tactical HUD 1 Map Filters NONE Filters NONE Steam 1 RUN: eb6dc354-7a9e-4d29-a914-77a3e5fb82e6